bitfinex/quotes_BTCUSD_20251019
["timestamp","ask_amount","ask_price","bid_price","bid_amount"]
[1760878803301,0.58509644,107840.0,107830.0,0.20222226]
[1760878804533,0.58509644,107840.0,107830.0,0.10882226]
[1760878804737,0.58509644,107840.0,107830.0,0.20122226]
[1760878806567,0.58616083,107840.0,107830.0,0.20122226]
[1760878810933,3.58616083,107840.0,107830.0,0.09441088]
[1760878811140,3.55440647,107840.0,107830.0,0.18773088]
[1760878814084,0.52549434,107820.0,107810.0,0.21339368]
[1760878814307,0.52549434,107820.0,107810.0,0.40112456]
[1760878815168,0.34,107820.0,107810.0,0.40112456]
[1760878815378,0.34,107820.0,107810.0,0.46821872]
[1760878815795,0.34,107820.0,107810.0,0.61551872]
[1760878816762,0.52549434,107820.0,107810.0,0.61551872]
[1760878819344,0.52549434,107820.0,107810.0,0.43000718]
[1760878819657,0.52584921,107820.0,107810.0,0.61551872]
[1760878821111,0.52584921,107820.0,107810.0,0.43000718]
[1760878821315,0.52584921,107820.0,107810.0,0.61551872]
[1760878822486,0.52584921,107820.0,107810.0,0.43000718]
[1760878823099,0.52584921,107820.0,107810.0,0.61551872]
[1760878825814,0.52584921,107820.0,107810.0,0.43000718]
[1760878826177,0.52584921,107820.0,107810.0,0.40212504]
[1760878827849,0.52584921,107820.0,107810.0,0.40208504]
[1760878830757,0.52584921,107820.0,107810.0,0.25478504]
[1760878833511,0.52584921,107820.0,107810.0,0.18869088]
[1760878833873,3.52584921,107820.0,107810.0,0.09541088]
[1760878834084,3.52584921,107820.0,107810.0,0.18869088]
[1760878835742,3.52584921,107820.0,107810.0,0.18769088]
[1760878835917,3.52584921,107820.0,107810.0,0.18869088]
[1760878839160,3.52584921,107820.0,107810.0,0.24084281]
[1760878839925,3.52584921,107820.0,107810.0,0.18869088]
[1760878843155,3.52584921,107820.0,107810.0,0.33599088]
[1760878844859,3.52588921,107820.0,107810.0,0.33599088]
[1760878847519,3.52588921,107820.0,107810.0,0.24158]
[1760878848241,3.52588921,107820.0,107810.0,0.09428]
[1760878848587,3.5582088,107820.0,107810.0,0.001]
[1760878848718,3.52588921,107820.0,107810.0,0.09424]
[1760878855545,3.52588921,107820.0,107810.0,0.001]
[1760878864859,0.52554596,107790.0,107780.0,0.1473]
[1760878865075,0.52554596,107790.0,107780.0,0.37387419]
[1760878865475,0.52554596,107790.0,107780.0,0.22657419]
[1760878866100,0.52559551,107790.0,107780.0,0.22857419]
[1760878866631,0.52559551,107790.0,107780.0,0.22657419]
[1760878866852,0.52559551,107790.0,107780.0,0.22757419]
[1760878871922,0.52559551,107790.0,107780.0,0.22657419]
[1760878872139,0.52559551,107790.0,107780.0,0.22757419]
[1760878873419,0.52559551,107790.0,107780.0,0.09541088]
[1760878873589,0.52559551,107790.0,107780.0,0.18861088]
[1760878874781,0.52559551,107790.0,107780.0,0.33591088]
[1760878879309,0.33227542,107790.0,107780.0,0.33591088]
[1760878879627,0.51782138,107790.0,107780.0,0.33591088]
[1760878879810,0.51782138,107790.0,107780.0,0.37155918]
[1760878887045,0.51782138,107790.0,107780.0,0.37131182]
[1760878906603,3.51782138,107790.0,107780.0,0.37131182]
[1760878907022,3.54571684,107790.0,107780.0,0.37131182]
[1760878914173,3.54571684,107790.0,107780.0,0.37031182]
[1760878914617,3.54571684,107790.0,107780.0,0.37131182]
[1760878926725,3.54571684,107790.0,107780.0,0.0366483]
[1760878926965,3.54571684,107790.0,107780.0,0.09416]
[1760878931404,3.34825315,107790.0,107780.0,0.09416]
[1760878931631,3.21349097,107790.0,107780.0,0.09416]
[1760878933460,3.55349097,107790.0,107780.0,0.09416]
[1760878936926,3.55339097,107790.0,107780.0,0.09416]
[1760878937255,3.55339097,107790.0,107780.0,0.12036321]
[1760878939121,3.36789546,107790.0,107780.0,0.12036321]
[1760878939330,3.55344142,107790.0,107780.0,0.12036321]
[1760878974206,3.5708612,107790.0,107780.0,0.001]
[1760878975209,3.52556318,107780.0,107770.0,0.09316]
[1760878975962,3.55346417,107780.0,107770.0,0.09316]
[1760878976605,3.55346417,107780.0,107770.0,0.09416]
[1760878977032,3.55346417,107780.0,107770.0,0.001]
[1760878977633,0.34,107730.0,107720.0,0.33296491]
[1760878977838,0.51054525,107730.0,107720.0,0.18761088]
[1760878978016,0.51054525,107730.0,107720.0,0.21551628]
[1760878978212,0.54749895,107730.0,107720.0,0.12231628]
[1760878978411,0.54749895,107730.0,107720.0,0.26236295]
[1760878978736,0.54749895,107730.0,107720.0,0.26285939]
[1760878978934,0.54749895,107730.0,107720.0,0.23495399]
[1760878979152,0.54749895,107730.0,107720.0,0.14175399]
[1760878979339,0.54749895,107730.0,107720.0,0.26286095]
[1760878979491,0.54749895,107730.0,107720.0,0.26486095]
[1760878979694,0.54749895,107730.0,107720.0,0.45052749]
[1760878980704,0.54749895,107730.0,107720.0,0.41216095]
[1760878981591,0.54749895,107730.0,107720.0,0.31896095]
[1760878981792,0.54749895,107730.0,107720.0,0.41216095]
[1760878982451,0.54749895,107730.0,107720.0,0.59782749]
[1760878983124,0.54749895,107730.0,107720.0,0.41216095]
[1760878984080,0.54749895,107730.0,107720.0,0.38425399]
[1760878984292,0.57540658,107730.0,107720.0,0.38425399]
[1760878985136,0.54749895,107730.0,107720.0,0.38425399]
[1760878986055,0.57540752,107730.0,107720.0,0.38425399]
[1760878986587,0.57540752,107730.0,107720.0,0.23695399]
[1760878987486,0.57540752,107730.0,107720.0,0.23495399]
[1760878989358,3.57540752,107730.0,107720.0,0.09369644]
[1760878991281,3.25051157,107730.0,107720.0,0.09369644]
[1760878993226,3.59051157,107730.0,107720.0,0.09369644]
[1760879001073,3.60781551,107730.0,107720.0,0.09369644]
[1760879002417,3.60781551,107730.0,107720.0,0.00049644]
[1760879002692,3.60781551,107730.0,107720.0,0.09369644]
[1760879004456,3.60781551,107730.0,107720.0,0.00049644]
[1760879008122,3.26781551,107730.0,107720.0,0.00049644]
[1760879008272,3.23990694,107730.0,107720.0,0.09490732]
[1760879008676,3.05425764,107730.0,107720.0,0.28057386]
[1760879008863,0.0369537,107730.0,107720.0,0.33970506]
[1760879009052,0.18563333,107740.0,107730.0,0.1856493]
[1760879009252,3.20300779,107740.0,107730.0,0.37330018]
[1760879009453,0.01737446,107740.0,107730.0,0.37330018]
[1760879009705,0.35917527,107740.0,107730.0,0.37330018]
[1760879009872,0.39012514,107740.0,107730.0,0.43515962]
[1760879010077,0.05012514,107740.0,107730.0,0.43515962]
[1760879010422,0.56018356,107740.0,107730.0,0.43515962]
[1760879010632,0.55838275,107740.0,107730.0,0.43515962]
[1760879011870,0.03275068,107740.0,107730.0,0.58245962]
[1760879012081,0.19490576,107760.0,107730.0,0.58245962]
[1760879012082,3.19490576,107760.0,107750.0,0.18561484]
[1760879012262,3.21228056,107760.0,107750.0,0.41038921]
[1760879012465,3.55228056,107760.0,107750.0,0.41038921]
[1760879012668,3.21228056,107760.0,107750.0,0.41038921]
[1760879012816,3.55228056,107760.0,107750.0,0.22477437]
[1760879013014,3.58414271,107760.0,107750.0,0.22477437]
[1760879013215,3.38923695,107760.0,107750.0,0.41038921]
[1760879013423,3.04923695,107760.0,107750.0,0.41038921]
[1760879013625,0.03186215,107760.0,107750.0,0.41038921]
[1760879013864,0.18561931,107770.0,107750.0,0.41038921]
[1760879014069,3.34,107760.0,107750.0,0.31597833]
[1760879014243,0.34,107760.0,107750.0,0.41038921]
[1760879014425,3.0,107760.0,107750.0,0.41038921]
[1760879015014,3.34,107760.0,107750.0,0.41038921]
[1760879015220,0.34,107760.0,107750.0,0.41038921]
[1760879015939,0.52559762,107760.0,107750.0,0.22477437]
[1760879016463,0.55769969,107760.0,107750.0,0.13153437]
[1760879016665,0.55769969,107760.0,107750.0,0.22477437]
[1760879020459,0.55769969,107760.0,107750.0,0.41038921]
[1760879020602,0.37210207,107760.0,107750.0,0.41038921]
[1760879021959,0.03210207,107760.0,107750.0,0.41038921]
[1760879022140,0.18561931,107770.0,107750.0,0.41038921]
[1760879022359,3.0,107760.0,107750.0,0.31597833]
[1760879022558,3.0,107760.0,107750.0,0.41038921]
[1760879023833,0.03151194,107760.0,107750.0,0.41038921]
[1760879024020,0.18561931,107770.0,107750.0,0.41038921]
[1760879024223,3.18561931,107770.0,107760.0,0.09441088]
[1760879024476,3.18561931,107770.0,107760.0,0.13589941]
[1760879025475,3.18561931,107770.0,107760.0,0.13639585]
[1760879026367,3.18551723,107770.0,107760.0,0.13639585]
[1760879027564,3.18551723,107770.0,107760.0,0.13691855]
[1760879028152,3.2174679,107770.0,107760.0,0.13691855]
[1760879028355,3.01546806,107770.0,107760.0,0.13691855]
[1760879028562,3.2175737,107770.0,107760.0,0.13691855]
[1760879028716,3.2175737,107770.0,107760.0,0.28421855]
[1760879028917,3.2175737,107770.0,107760.0,0.28324624]
[1760879033009,3.2175737,107770.0,107760.0,0.33540732]
[1760879033362,3.2175737,107770.0,107760.0,0.14779644]
[1760879033655,3.5575737,107770.0,107760.0,0.24099644]
[1760879034763,3.5575737,107770.0,107760.0,0.09369644]
[1760879036437,3.35734897,107770.0,107760.0,0.09369644]
[1760879036642,3.542972,107770.0,107760.0,0.10306608]
[1760879037080,3.52562303,107770.0,107760.0,0.10306608]
[1760879037426,3.01736455,107770.0,107760.0,0.19747696]
[1760879037614,3.1855804,107770.0,107760.0,0.19747696]
[1760879038081,3.21757269,107770.0,107760.0,0.19747696]
[1760879038319,3.21757269,107770.0,107760.0,0.38307458]
[1760879039274,3.03199229,107770.0,107760.0,0.38307458]
[1760879039631,0.03199229,107770.0,107760.0,0.38307458]
[1760879039835,0.2193735,107770.0,107760.0,0.19747696]
[1760879040029,0.1855804,107770.0,107760.0,0.19747696]
[1760879040234,0.21819465,107770.0,107760.0,0.19747696]
[1760879040481,0.21819465,107770.0,107760.0,0.38307458]
[1760879041445,0.21819465,107770.0,107760.0,0.38407458]
[1760879042201,0.37261425,107770.0,107760.0,0.38407458]
[1760879043121,0.55819465,107770.0,107760.0,0.38407458]
[1760879045729,0.55819465,107770.0,107760.0,0.19847696]
[1760879045932,0.37261425,107770.0,107760.0,0.38407458]
[1760879046337,0.55819465,107770.0,107760.0,0.38407458]
[1760879046914,0.37261425,107770.0,107760.0,0.38407458]
[1760879047631,0.03261425,107770.0,107760.0,0.38407458]
[1760879048047,3.53488461,107790.0,107780.0,0.18556318]
[1760879048240,3.55226482,107790.0,107780.0,0.41028696]
[1760879049010,3.53488461,107790.0,107780.0,0.41028696]
[1760879049211,3.55226156,107790.0,107780.0,0.41028696]
[1760879049411,3.58919724,107790.0,107780.0,0.41028696]
[1760879049615,3.40365128,107790.0,107780.0,0.41028696]
[1760879049869,3.39437399,107790.0,107780.0,0.41028696]
[1760879050031,3.57991995,107790.0,107780.0,0.41028696]
[1760879050230,3.57991995,107790.0,107780.0,0.22472378]
[1760879051220,3.57991995,107790.0,107780.0,0.41028696]
[1760879052316,3.562543,107790.0,107780.0,0.41028696]
[1760879053155,3.37699704,107790.0,107780.0,0.41028696]
[1760879053654,3.562543,107790.0,107780.0,0.41028696]
[1760879054199,3.37699704,107790.0,107780.0,0.41028696]
[1760879055498,0.37699704,107790.0,107780.0,0.41028696]
[1760879057110,0.37699704,107790.0,107780.0,0.41128696]
[1760879078611,0.37699704,107790.0,107780.0,0.31808696]
[1760879078803,0.37699704,107790.0,107780.0,0.41124696]
[1760879087840,0.03699704,107790.0,107780.0,0.41124696]
[1760879088056,0.34,107800.0,107790.0,0.18554596]
[1760879088264,0.34,107800.0,107790.0,0.43641436]
[1760879090063,0.37697214,107800.0,107790.0,0.43641436]
[1760879092420,0.37697214,107800.0,107790.0,0.43741436]
[1760879094817,0.56250089,107800.0,107790.0,0.43737436]
[1760879096283,0.37697214,107800.0,107790.0,0.43737436]
[1760879096687,0.56250089,107800.0,107790.0,0.43737436]
[1760879097037,0.37697214,107800.0,107790.0,0.43737436]
[1760879097517,0.56250089,107800.0,107790.0,0.43737436]
[1760879101417,0.37697214,107800.0,107790.0,0.43737436]
[1760879104622,0.37697214,107800.0,107790.0,0.47355664]
[1760879105658,0.03697214,107800.0,107790.0,0.47355664]
[1760879106049,3.0,107800.0,107790.0,0.47355664]
[1760879106270,2.83785214,107800.0,107790.0,0.47355664]
[1760879106473,3.0,107800.0,107790.0,0.47355664]
[1760879108614,3.0,107800.0,107790.0,0.62085664]
[1760879110892,0.18552875,107800.0,107790.0,0.3991284]
[1760879111105,0.18552875,107800.0,107790.0,0.58467436]
[1760879111417,0.22346824,107810.0,107790.0,0.58467436]
[1760879111619,3.22346824,107810.0,107800.0,0.09441088]
[1760879111820,3.22346824,107810.0,107800.0,0.23668632]
[1760879112768,3.22351783,107810.0,107800.0,0.23668632]
[1760879112903,3.22351783,107810.0,107800.0,0.14356632]
[1760879113114,3.22351783,107810.0,107800.0,0.23668632]
[1760879114957,3.22351783,107810.0,107800.0,0.14356632]
[1760879115172,3.56351783,107810.0,107800.0,0.18753088]
[1760879128992,3.59140925,107810.0,107800.0,0.18753088]
[1760879131444,3.59140925,107810.0,107800.0,0.09312]
[1760879133062,0.52554596,107790.0,107780.0,0.19369105]
[1760879133280,0.52554596,107790.0,107780.0,0.37194378]
[1760879134227,0.52554596,107790.0,107780.0,0.37294378]
[1760879134427,0.52554596,107790.0,107780.0,0.18853088]
[1760879134848,0.55344148,107790.0,107780.0,0.18853088]
[1760879135788,3.55344148,107790.0,107780.0,0.18853088]
[1760879136396,3.55344148,107790.0,107780.0,0.18753088]
[1760879136829,0.36789552,107790.0,107780.0,0.37309406]
[1760879137075,3.0,107790.0,107780.0,0.42896147]
[1760879137735,3.0,107800.0,107790.0,0.18554596]
[1760879137954,3.0,107800.0,107790.0,0.27995684]
[1760879138174,3.34,107800.0,107790.0,0.42725684]
[1760879138402,3.34,107800.0,107790.0,0.50343758]
[1760879138844,0.34,107800.0,107790.0,0.50343758]
[1760879139099,3.0,107800.0,107790.0,0.50343758]
[1760879139305,0.34,107800.0,107790.0,0.50343758]
[1760879139722,3.0,107800.0,107790.0,0.35613758]
[1760879140035,0.34,107800.0,107790.0,0.35613758]
[1760879140529,0.34,107800.0,107790.0,0.35713758]
[1760879141475,0.52552875,107800.0,107790.0,0.50443758]
[1760879141689,0.52552875,107800.0,107790.0,0.31889162]
[1760879142312,0.52552875,107800.0,107790.0,0.50443758]
[1760879142678,0.52552875,107800.0,107790.0,0.17159162]
[1760879142907,3.52552875,107800.0,107790.0,0.001]
[1760879143124,3.55342462,107800.0,107790.0,0.001]
[1760879143330,3.57081173,107800.0,107790.0,0.001]
[1760879143728,0.52554596,107790.0,107780.0,0.01728]
[1760879143866,3.54293307,107790.0,107780.0,0.01728]
[1760879144071,3.52554596,107790.0,107780.0,0.01728]
[1760879144730,0.52559762,107760.0,107740.0,0.37298889]
[1760879144927,0.52559762,107760.0,107750.0,0.37314572]
[1760879145941,0.52559762,107760.0,107750.0,0.37364216]
[1760879146601,0.52559762,107760.0,107750.0,0.18802732]
[1760879147028,0.52559762,107760.0,107750.0,0.37364216]
[1760879147220,0.52559762,107760.0,107750.0,0.44830526]
[1760879147431,0.52559762,107760.0,107750.0,0.44930526]
[1760879147836,0.52559762,107760.0,107750.0,0.26369042]
[1760879148918,0.52559762,107760.0,107750.0,0.44930526]
[1760879149128,0.52559762,107760.0,107750.0,0.44830526]
[1760879151679,0.52559762,107760.0,107750.0,0.26269042]
[1760879159508,0.52559762,107760.0,107750.0,0.16957042]
[1760879159795,0.52559762,107760.0,107750.0,0.18806732]
[1760879159975,0.55350048,107760.0,107750.0,0.18806732]
[1760879161786,0.55350048,107760.0,107750.0,0.33536732]
[1760879162341,3.55350048,107760.0,107750.0,0.33536732]
[1760879163123,3.52559762,107760.0,107750.0,0.33536732]
[1760879164321,3.52559762,107760.0,107750.0,0.36919168]
[1760879168314,3.52559762,107760.0,107750.0,0.55480652]
[1760879168521,0.34,107760.0,107750.0,0.55480652]
[1760879171232,0.34,107760.0,107750.0,0.55580652]
[1760879171545,0.34,107760.0,107750.0,0.58370562]
[1760879175760,0.52559762,107760.0,107750.0,0.58370562]
[1760879176335,0.52559762,107760.0,107750.0,0.24320732]
[1760879176536,0.52559762,107760.0,107750.0,0.33636732]
[1760879177416,0.52559762,107760.0,107750.0,0.33536732]
[1760879182998,0.52559762,107760.0,107750.0,0.24220732]
[1760879183198,0.52559762,107760.0,107750.0,0.33536732]
[1760879183402,0.52559762,107760.0,107750.0,0.36919168]
[1760879183839,0.52559762,107760.0,107750.0,0.33536732]
[1760879184019,3.52559762,107760.0,107750.0,0.33536732]
[1760879184228,3.55350131,107760.0,107750.0,0.33536732]
[1760879184867,3.55350131,107760.0,107750.0,0.14779644]
[1760879185081,3.57090351,107760.0,107750.0,0.24095644]
[1760879185270,3.57090351,107760.0,107750.0,0.09365644]
[1760879187610,3.57090351,107760.0,107750.0,0.00049644]
[1760879188878,3.54299982,107760.0,107750.0,0.00049644]
[1760879190702,3.54399982,107760.0,107750.0,0.00049644]
[1760879192430,3.6384107,107760.0,107750.0,0.00049644]
[1760879192637,3.66632109,107760.0,107750.0,0.00049644]
[1760879195875,3.66632109,107760.0,107740.0,0.00287626]
[1760879195876,3.52561484,107750.0,107740.0,0.00287626]
[1760879196062,3.63617704,107750.0,107740.0,0.00296837]
[1760879199488,3.66408987,107750.0,107740.0,0.00296837]
[1760879200639,3.75850075,107750.0,107740.0,0.00296837]
[1760879201793,3.75850075,107750.0,107740.0,1e-08]
[1760879202442,3.79468303,107750.0,107740.0,1e-08]
[1760879203680,3.79568303,107750.0,107740.0,1e-08]
[1760879205365,3.79561271,107750.0,107740.0,1e-08]
[1760879205572,3.8056127,107750.0,107740.0,1e-08]
[1760879206862,3.79561271,107750.0,107740.0,1e-08]
[1760879207117,3.8056127,107750.0,107740.0,1e-08]
[1760879208394,3.79561271,107750.0,107740.0,1e-08]
[1760879208592,3.80723001,107750.0,107740.0,1e-08]
[1760879210020,3.80623001,107750.0,107740.0,1e-08]
[1760879210430,3.81623,107750.0,107740.0,1e-08]
[1760879210858,3.83078825,107750.0,107740.0,1e-08]
[1760879211315,3.72962826,107750.0,107740.0,1e-08]
[1760879211521,3.82282826,107750.0,107740.0,1e-08]
[1760879211933,3.83282825,107750.0,107740.0,1e-08]
[1760879212147,3.82282826,107750.0,107740.0,1e-08]
[1760879212798,3.83282825,107750.0,107740.0,1e-08]
[1760879213475,3.73962825,107750.0,107740.0,1e-08]
[1760879213671,3.82282826,107750.0,107740.0,1e-08]
[1760879214549,3.81282827,107750.0,107740.0,1e-08]
[1760879214755,3.82282826,107750.0,107740.0,1e-08]
[1760879215157,3.81282827,107750.0,107740.0,1e-08]
[1760879215372,3.79827002,107750.0,107740.0,1e-08]
[1760879215585,3.70507002,107750.0,107740.0,1e-08]
[1760879216426,3.79827002,107750.0,107740.0,1e-08]
[1760879216676,3.80827001,107750.0,107740.0,1e-08]
[1760879217182,3.79827002,107750.0,107740.0,1e-08]
[1760879217373,3.80827001,107750.0,107740.0,1e-08]
[1760879217597,3.79827002,107750.0,107740.0,1e-08]
[1760879217804,3.80827001,107750.0,107740.0,1e-08]
[1760879218648,3.79827002,107750.0,107740.0,1e-08]
[1760879218848,3.80827001,107750.0,107740.0,1e-08]
[1760879220893,3.79827002,107750.0,107740.0,1e-08]
[1760879221096,3.80827001,107750.0,107740.0,1e-08]
[1760879222701,3.79827002,107750.0,107740.0,1e-08]
[1760879223138,3.80827001,107750.0,107740.0,1e-08]
[1760879227542,3.81827,107750.0,107740.0,1e-08]
[1760879228212,3.84575139,107750.0,107740.0,1e-08]
[1760879228674,3.8458107,107750.0,107740.0,1e-08]
[1760879229339,3.85066469,107750.0,107740.0,1e-08]
[1760879229550,3.84866469,107750.0,107740.0,1e-08]
[1760879229998,3.84704738,107750.0,107740.0,1e-08]
[1760879231097,3.84904738,107750.0,107740.0,1e-08]
[1760879231531,3.84704738,107750.0,107740.0,1e-08]
[1760879231935,3.84904738,107750.0,107740.0,1e-08]
[1760879232424,3.8636076,107750.0,107740.0,1e-08]
[1760879232592,3.83612621,107750.0,107740.0,1e-08]
[1760879233013,3.93394621,107750.0,107740.0,1e-08]
[1760879236913,3.93556383,107750.0,107740.0,1e-08]
[1760879238188,3.92556384,107750.0,107740.0,1e-08]
[1760879238396,3.93556383,107750.0,107740.0,1e-08]
[1760879238595,3.92100361,107750.0,107740.0,1e-08]
[1760879239828,3.82780361,107750.0,107740.0,1e-08]
[1760879240051,3.92100361,107750.0,107740.0,1e-08]
[1760879240453,3.935564,107750.0,107740.0,1e-08]
[1760879241814,3.837744,107750.0,107740.0,1e-08]
[1760879242244,3.744544,107750.0,107740.0,1e-08]
[1760879242472,3.837744,107750.0,107740.0,1e-08]
[1760879243498,3.835744,107750.0,107740.0,1e-08]
[1760879243930,3.837744,107750.0,107740.0,1e-08]
[1760879244484,3.835744,107750.0,107740.0,1e-08]
[1760879244895,3.835744,107750.0,107700.0,0.0002]
[1760879244896,3.56186606,107710.0,107700.0,1e-08]
[1760879245137,3.76686813,107710.0,107700.0,4.956e-05]
[1760879245524,3.67739148,107710.0,107700.0,4.956e-05]
[1760879245742,3.80452888,107710.0,107700.0,4.956e-05]
[1760879245953,3.77220929,107710.0,107700.0,4.956e-05]
[1760879246593,3.67739148,107710.0,107700.0,4.956e-05]
[1760879246799,3.67739148,107710.0,107680.0,0.0002]
[1760879246800,0.52571826,107690.0,107680.0,0.0002]
[1760879246998,3.54310945,107690.0,107680.0,0.00024964]
[1760879247612,3.57023729,107690.0,107680.0,0.00024964]
[1760879248163,3.79403045,107690.0,107680.0,1e-08]
[1760879248366,3.70083045,107690.0,107680.0,1e-08]
[1760879248534,3.79775183,107690.0,107680.0,1e-08]
[1760879249641,3.80775182,107690.0,107680.0,1e-08]
[1760879249847,3.84007141,107690.0,107680.0,1e-08]
[1760879250022,3.80775182,107690.0,107680.0,1e-08]
[1760879250456,3.79936992,107690.0,107680.0,1e-08]
[1760879250612,3.81036991,107690.0,107680.0,1e-08]
[1760879251216,3.82493556,107690.0,107680.0,1e-08]
[1760879252359,3.81493557,107690.0,107680.0,1e-08]
[1760879252702,3.82493556,107690.0,107680.0,1e-08]
[1760879253389,3.73169556,107690.0,107680.0,1e-08]
[1760879253739,3.82331747,107690.0,107680.0,1e-08]
[1760879254923,3.81331748,107690.0,107680.0,1e-08]
[1760879255058,3.82331747,107690.0,107680.0,1e-08]
[1760879255466,3.81331748,107690.0,107680.0,1e-08]
[1760879255690,3.82331747,107690.0,107680.0,1e-08]
[1760879255861,3.73007747,107690.0,107680.0,1e-08]
[1760879256199,3.82331747,107690.0,107680.0,1e-08]
[1760879256810,3.82493555,107690.0,107680.0,1e-08]
[1760879257585,3.73169555,107690.0,107680.0,1e-08]
[1760879257790,3.82493555,107690.0,107680.0,1e-08]
[1760879257991,3.81493556,107690.0,107680.0,1e-08]
[1760879258188,3.72169556,107690.0,107680.0,1e-08]
[1760879258430,3.73166761,107690.0,107680.0,1e-08]
[1760879258611,3.81494762,107690.0,107680.0,1e-08]
[1760879258794,3.82494761,107690.0,107680.0,1e-08]
[1760879258990,3.73166761,107690.0,107680.0,1e-08]
[1760879259210,3.81494762,107690.0,107680.0,1e-08]
[1760879259456,3.54594935,107690.0,107680.0,1e-08]
[1760879259662,3.81494762,107690.0,107680.0,1e-08]
[1760879260365,3.82494761,107690.0,107680.0,1e-08]
[1760879260771,3.73166761,107690.0,107680.0,1e-08]
[1760879261318,3.82494761,107690.0,107680.0,1e-08]
[1760879261535,3.73166761,107690.0,107680.0,1e-08]
[1760879261736,3.82494761,107690.0,107680.0,1e-08]
[1760879261897,3.81494762,107690.0,107680.0,1e-08]
[1760879262103,3.82494761,107690.0,107680.0,1e-08]
[1760879262280,3.73166761,107690.0,107680.0,1e-08]
[1760879262686,3.82494761,107690.0,107680.0,1e-08]
[1760879262910,3.73166761,107690.0,107680.0,1e-08]
[1760879263080,3.82494761,107690.0,107680.0,1e-08]
[1760879263671,3.81494762,107690.0,107680.0,1e-08]
[1760879263894,3.82494761,107690.0,107680.0,1e-08]
[1760879264295,3.81494762,107690.0,107680.0,1e-08]
[1760879264555,3.82494761,107690.0,107680.0,1e-08]
[1760879264699,3.81494762,107690.0,107680.0,1e-08]
[1760879264900,3.82494761,107690.0,107680.0,1e-08]
[1760879265356,3.72166762,107690.0,107680.0,1e-08]
[1760879265573,3.73166761,107690.0,107680.0,1e-08]
[1760879265933,3.82494761,107690.0,107680.0,1e-08]
[1760879266165,3.73166761,107690.0,107680.0,1e-08]
[1760879266375,3.81494762,107690.0,107680.0,1e-08]
[1760879266643,3.73166761,107690.0,107680.0,1e-08]
[1760879266818,3.82494761,107690.0,107680.0,1e-08]
[1760879267121,3.73166761,107690.0,107680.0,1e-08]
[1760879267271,3.82494761,107690.0,107680.0,1e-08]
[1760879267480,3.81494762,107690.0,107680.0,1e-08]
[1760879267682,3.82494761,107690.0,107680.0,1e-08]
[1760879268114,3.81494762,107690.0,107680.0,1e-08]
[1760879268316,3.73166761,107690.0,107680.0,1e-08]
[1760879268513,3.81494762,107690.0,107680.0,1e-08]
[1760879268740,3.72166762,107690.0,107680.0,1e-08]
[1760879268943,3.82494761,107690.0,107680.0,1e-08]
[1760879269114,3.73166761,107690.0,107680.0,1e-08]
[1760879269321,3.81494762,107690.0,107680.0,1e-08]
[1760879269830,3.72166762,107690.0,107680.0,1e-08]
[1760879270256,3.81494762,107690.0,107680.0,1e-08]
[1760879271488,3.72166762,107690.0,107680.0,1e-08]
[1760879272245,3.59107446,107690.0,107680.0,1e-08]
[1760879272489,3.23650881,107690.0,107680.0,1e-08]
[1760879272739,3.57650881,107690.0,107680.0,1e-08]
[1760879272957,3.57489073,107690.0,107680.0,1e-08]
[1760879273518,3.57389073,107690.0,107680.0,1e-08]
[1760879273930,3.66830161,107690.0,107680.0,1e-08]
[1760879274142,3.66930161,107690.0,107680.0,1e-08]
[1760879274353,3.70548389,107690.0,107680.0,1e-08]
[1760879274588,3.79876389,107690.0,107680.0,1e-08]
[1760879274799,3.79776389,107690.0,107680.0,1e-08]
[1760879276186,3.79938218,107690.0,107680.0,1e-08]
[1760879276603,3.6699199,107690.0,107680.0,1e-08]
[1760879276798,3.7631999,107690.0,107680.0,1e-08]
[1760879277422,3.7641999,107690.0,107680.0,1e-08]
[1760879280211,3.6709199,107690.0,107680.0,1e-08]
[1760879280422,3.52573551,107680.0,107670.0,0.0002]
[1760879280630,3.54305598,107680.0,107670.0,0.00024964]
[1760879281714,3.570985,107680.0,107670.0,0.00024964]
[1760879286355,3.570985,107680.0,107670.0,0.00060523]
[1760879294840,3.38524949,107680.0,107670.0,0.00060523]
[1760879295054,3.570985,107680.0,107670.0,0.00060523]
[1760879298925,3.230985,107680.0,107670.0,0.00060523]
[1760879299357,3.20305598,107680.0,107670.0,0.00060523]
[1760879299940,3.54305598,107680.0,107670.0,0.00060523]
[1760879300364,3.52573551,107680.0,107670.0,0.00060523]
[1760879300922,3.52573551,107680.0,107670.0,0.00160523]
[1760879306988,3.18573551,107680.0,107670.0,0.42906887]
[1760879307194,3.18573551,107680.0,107670.0,0.49990069]
[1760879307402,3.18573551,107680.0,107670.0,0.31414793]
[1760879307804,3.52573551,107680.0,107670.0,0.31414793]
[1760879310255,3.52573551,107680.0,107670.0,0.14890523]
[1760879311288,3.52573551,107680.0,107670.0,0.14790523]
[1760879312593,3.52573551,107680.0,107670.0,0.00060523]
[1760879313426,3.54310076,107680.0,107670.0,0.00060523]
[1760879316810,3.57102946,107680.0,107670.0,0.00060523]
[1760879321623,3.41067331,107680.0,107670.0,0.00060523]
[1760879333102,3.50508419,107680.0,107670.0,0.00060523]
[1760879333292,3.36539661,107670.0,107660.0,0.0002]
[1760879333528,3.38276186,107670.0,107660.0,0.00069589]
[1760879334041,3.41069324,107670.0,107660.0,0.00069589]
[1760879336817,3.50393324,107670.0,107660.0,0.00069589]
[1760879337234,3.50555167,107670.0,107660.0,0.00069589]
[1760879337430,3.50393324,107670.0,107660.0,0.00069589]
[1760879339003,3.50393324,107670.0,107660.0,0.00105153]
[1760879340561,3.41069324,107670.0,107660.0,0.00105153]
[1760879349631,3.41069891,107670.0,107660.0,0.00105153]
[1760879352905,3.50397891,107670.0,107660.0,0.00105153]
[1760879353881,3.41069891,107670.0,107660.0,0.00105153]
[1760879354104,3.50397891,107670.0,107660.0,0.00105153]
[1760879354322,3.41069891,107670.0,107660.0,0.00105153]
[1760879354571,3.50397891,107670.0,107660.0,0.00105153]
[1760879354988,3.41069891,107670.0,107660.0,0.00105153]
[1760879355219,3.50397891,107670.0,107660.0,0.00105153]
[1760879356606,3.50397891,107670.0,107660.0,1e-08]
[1760879358039,3.59838979,107670.0,107660.0,1e-08]
[1760879358532,3.50510979,107670.0,107660.0,1e-08]
[1760879358745,3.59838979,107670.0,107660.0,1e-08]
[1760879360463,3.50510979,107670.0,107660.0,1e-08]
[1760879360666,3.59838979,107670.0,107660.0,1e-08]
[1760879360873,3.50510979,107670.0,107660.0,1e-08]
[1760879361458,3.59838979,107670.0,107660.0,1e-08]
[1760879361859,3.54129207,107670.0,107660.0,1e-08]
[1760879362044,3.63457207,107670.0,107660.0,1e-08]
[1760879366994,3.54129207,107670.0,107660.0,1e-08]
[1760879367172,3.63457207,107670.0,107660.0,1e-08]